{"text_format":"1","workbook":"xlsx","n_sheets":3,"sheets":["ガイド","ランニング タイム記録表","レース別のタイム記録表"],"not_rendered":{"charts":4,"images":9,"macros":0,"external_links":0,"defined_names":1,"comments":0,"pivot_tables":0},"unopened":[],"bounds":{"document_bytes":16777216,"sheet_cells":100000,"rows_first":2000,"rows_last":500,"rows_between":2000,"halvings":0,"cell_chars":16384,"cell_head_chars":4096},"cells_cut":0,"cells_raw":0,"read":"whole","date_system":"1900"}

{"sheet":"ガイド","index":0,"n_rows":1,"n_cols":1,"rows_kept":1,"cut":false,"hidden":false,"merged":[]}
["このテンプレートの使い方"]

{"sheet":"ランニング タイム記録表","index":1,"n_rows":39,"n_cols":15,"rows_kept":39,"cut":false,"hidden":false,"merged":[]}
[]
[]
[]
[null,"■ランナーの年齢を入力"]
[null,"年齢",39]
[]
[null,"■ランニング タイム記録表"]
[null,"日付","時刻","走行\n距離","タイム","目標\nタイム","スピード","目標\nスピード","ペース","目標\nペース","心拍数","目標\n心拍数","コース","天気","気温"]
[null,"2013-03-22","18:30:00",5,"00:27:00","00:23:00",{"$f":"D9/(MINUTE(E9)/60)","v":11.111111111111111},{"$f":"D9/(MINUTE(F9)/60)","v":13.043478260869565},{"$f":"E9/D9","v":"00:05:24"},{"$f":"F9/D9","v":"00:04:36"},135,{"$f":"IF(K9=\"\",\"\",(220-$C$5)*0.65)","v":117.65},"皇居周辺コース","晴れ",22]
[null,"2013-03-24","17:00:00",5,"00:26:30","00:23:00",{"$f":"D10/(MINUTE(E10)/60)","v":11.538461538461538},{"$f":"D10/(MINUTE(F10)/60)","v":13.043478260869565},{"$f":"E10/D10","v":"00:05:18"},{"$f":"F10/D10","v":"00:04:36"},140,117.65,"皇居周辺コース","晴れ",22]
[null,"2013-03-28","18:00:00",5,"00:27:30","00:23:00",{"$f":"D11/(MINUTE(E11)/60)","v":11.111111111111111},13.043478260869565,{"$f":"E11/D11","v":"00:05:30"},"00:04:36",138,117.65,"皇居周辺コース","晴れ",22]
[null,"2013-04-02","17:30:00",5,"00:24:00","00:23:00",{"$f":"D12/(MINUTE(E12)/60)","v":12.5},13.043478260869565,{"$f":"E12/D12","v":"00:04:48"},"00:04:36",145,117.65,"皇居周辺コース","晴れ",22]
[null,"2013-04-08","17:45:00",5,"00:25:30","00:23:00",{"$f":"D13/(MINUTE(E13)/60)","v":12},13.043478260869565,{"$f":"E13/D13","v":"00:05:06"},"00:04:36",130,117.65,"皇居周辺コース","晴れ",22]
[null,null,null,null,null,null,null,null,null,null,null,""]
[null,null,null,null,null,null,null,null,null,null,null,""]
[null,null,null,null,null,null,null,null,null,null,null,""]
[null,null,null,null,null,null,null,null,null,null,null,""]
[null,null,null,null,null,null,null,null,null,null,null,""]
[null,null,null,null,null,null,null,null,null,null,null,""]
[null,null,null,null,null,null,null,null,null,null,null,""]
[null,null,null,null,null,null,null,null,null,null,null,""]
[null,null,null,null,null,null,null,null,null,null,null,""]
[null,null,null,null,null,null,null,null,null,null,null,""]
[null,null,null,null,null,null,null,null,null,null,null,""]
[null,null,null,null,null,null,null,null,null,null,null,""]
[null,null,null,null,null,null,null,null,null,null,null,""]
[null,null,null,null,null,null,null,null,null,null,null,""]
[null,null,null,null,null,null,null,null,null,null,null,""]
[null,null,null,null,null,null,null,null,null,null,null,""]
[null,null,null,null,null,null,null,null,null,null,null,""]
[null,null,null,null,null,null,null,null,null,null,null,""]
[null,null,null,null,null,null,null,null,null,null,null,""]
[null,null,null,null,null,null,null,null,null,null,null,""]
[null,null,null,null,null,null,null,null,null,null,null,""]
[null,null,null,null,null,null,null,null,null,null,null,""]
[null,null,null,null,null,null,null,null,null,null,null,""]
[null,null,null,null,null,null,null,null,null,null,null,""]
[null,null,null,null,null,null,null,null,null,null,null,""]
[null,null,null,null,null,null,null,null,null,null,null,""]

{"sheet":"レース別のタイム記録表","index":2,"n_rows":7,"n_cols":6,"rows_kept":7,"cut":false,"hidden":false,"merged":[]}
[]
[]
[]
[null,"日付","レース名","走行距離","今回のタイム","前回のタイム"]
[null,"2012-09-16","●●五岳トレイルランニングレース",100,"13:26:39","14:01:51"]
[null,"2012-10-28","▲▲山トレイルランニング・レース",30,"02:35:28"]
[null,"2013-02-10","第◯回◆◆ジャングルトレイル50K",40,"03:34:24"]